bitfinex/quotes_SOLUSD_20241013
["timestamp","ask_amount","ask_price","bid_price","bid_amount"]
[1728852282438,3.41975721,146.35,146.34,6.8332]
[1728852282612,8.89136811,146.35,146.34,6.8332]
[1728852287042,8.89136811,146.35,146.33,23.9175]
[1728852287332,8.89136811,146.34,146.33,23.9175]
[1728852289349,8.90696498,146.34,146.33,23.9175]
[1728852296954,8.91955441,146.34,146.33,23.9175]
[1728852300758,5.49036327,146.34,146.33,23.9175]
[1728852300936,8.92184031,146.34,146.33,23.9175]
[1728852301247,8.92184031,146.34,146.31,6.8344]
[1728852301449,8.92184031,146.33,146.31,6.8344]
[1728852301644,8.92184031,146.32,146.31,26.8344]
[1728852302848,8.92184031,146.32,146.31,38.27076685]
[1728852313870,8.92184031,146.32,146.31,18.27076685]
[1728852316149,8.92184031,146.32,146.31,6.8344]
[1728852326663,8.91933138,146.32,146.31,6.8344]
[1728852330791,8.91904211,146.32,146.31,6.8344]
[1728852331981,8.91904211,146.32,146.31,18.27076685]
[1728852332376,8.91904211,146.32,146.31,62.04765085]
[1728852332561,3.43040081,146.32,146.31,62.04765085]
[1728852332989,1.18913072,146.39,146.35,17.0813]
[1728852333166,5.48921744,146.38,146.36,11.43636685]
[1728852333364,5.48921744,146.37,146.36,18.26876685]
[1728852334276,2.89685344,146.41,146.36,11.43636685]
[1728852334494,2.89685344,146.41,146.37,18.26786685]
[1728852334791,5.48657267,146.4,146.37,18.26786685]
[1728852334994,5.48657267,146.39,146.37,18.26786685]
[1728852335193,5.48657267,146.38,146.37,18.26786685]
[1728852336067,5.48657267,146.38,146.37,6.8315]
[1728852342272,5.47969105,146.38,146.37,6.8315]
[1728852343590,5.47969105,146.38,146.37,18.26786685]
[1728852344392,6.8292,146.43,146.38,6.8311]
[1728852344592,7.18514214,146.42,146.38,18.26746685]
[1728852344808,5.4775307,146.41,146.38,18.26746685]
[1728852345102,8.90098346,146.4,146.38,18.26746685]
[1728852345287,8.90098346,146.39,146.38,18.26746685]
[1728852345675,1.70761144,146.42,146.38,18.26746685]
[1728852345874,8.89957107,146.41,146.38,18.26746685]
[1728852346078,8.89957107,146.4,146.38,6.8311]
[1728852346382,8.89957107,146.39,146.38,6.8311]
[1728852346978,8.89957107,146.39,146.37,17.079]
[1728852347176,8.89957107,146.38,146.37,17.079]
[1728852350903,8.89957107,146.38,146.37,23.911]
[1728852353308,5.36577248,146.38,146.37,23.911]
[1728852353504,3.3536078,146.38,146.37,23.911]
[1728852354014,8.71938028,146.38,146.37,23.911]
[1728852355192,3.3536078,146.38,146.37,23.911]
[1728852356108,8.71845412,146.38,146.37,23.911]
[1728852357183,6.8302,146.41,146.37,23.911]
[1728852357384,8.7171056,146.4,146.37,23.911]
[1728852357583,8.7171056,146.39,146.37,23.911]
[1728852357888,8.7171056,146.38,146.37,23.911]
[1728852358387,3.35273292,146.38,146.37,23.911]
[1728852361206,8.71656433,146.38,146.37,23.911]
[1728852362088,3.35273292,146.38,146.37,23.911]
[1728852363489,8.01804007,146.43,146.37,28.51536685]
[1728852363692,10.42334353,146.42,146.38,6.8311]
[1728852364000,1.70759079,146.42,146.38,6.8311]
[1728852364186,8.71575274,146.41,146.38,6.8311]
[1728852364392,3.35221259,146.4,146.38,6.8311]
[1728852364585,3.35221259,146.39,146.38,6.8311]
[1728852367399,3.35141543,146.39,146.38,6.8311]
[1728852368023,1.70759079,146.42,146.38,6.8311]
[1728852368314,8.71369473,146.41,146.38,6.8311]
[1728852368521,8.71369473,146.4,146.38,6.8311]
[1728852368722,3.35142105,146.39,146.38,6.8311]
[1728852371826,3.35142105,146.39,146.38,18.26746685]
[1728852371998,1.18874007,146.43,146.4,6.8305]
[1728852372196,8.71299564,146.42,146.4,6.8305]
[1728852372403,3.35115217,146.41,146.4,6.8305]
[1728852376326,3.3500796,146.41,146.4,6.8305]
[1728852378720,3.3500796,146.41,146.39,23.9079]
[1728852378909,3.35012249,146.4,146.39,17.0769]
[1728852379409,1.7075313,146.42,146.39,17.0769]
[1728852379610,3.35038252,146.41,146.39,17.0769]
[1728852379830,3.35038252,146.4,146.39,17.0769]
[1728852380625,3.35038252,146.4,146.39,23.9079]
[1728852384412,3.35256839,146.4,146.39,23.9079]
[1728852387439,8.7202458,146.4,146.39,23.9079]
[1728852387842,8.7202458,146.4,146.39,35.34426685]
[1728852388028,3.35256839,146.4,146.39,35.34426685]
[1728852388426,8.72177686,146.4,146.39,35.34426685]
[1728852388624,1.707554,146.44,146.4,6.8305]
[1728852388824,8.72495434,146.43,146.4,6.8305]
[1728852389025,8.72495434,146.42,146.4,6.8305]
[1728852389231,8.72495434,146.41,146.4,6.8305]
[1728852392951,8.73915456,146.41,146.4,6.8305]
[1728852396835,8.73907323,146.41,146.4,6.8305]
[1728852398341,8.73907323,146.41,146.39,17.0769]
[1728852398658,8.73907323,146.4,146.39,17.0769]
[1728852399240,8.73907323,146.4,146.38,6.8314]
[1728852399447,8.73907323,146.39,146.38,26.8314]
[1728852400457,8.73907323,146.39,146.38,6.8314]
[1728852401064,8.73960841,146.39,146.38,6.8314]
[1728852401238,8.73960841,146.39,146.37,6.8318]
[1728852401559,8.73960841,146.38,146.36,23.9131]
[1728852401734,8.73960841,146.37,146.36,23.9131]
[1728852404881,8.7396752,146.37,146.36,23.9131]
[1728852405562,8.7396752,146.37,146.36,17.0808]
[1728852408853,8.5384237,146.4,146.36,17.0808]
[1728852409151,3.36103897,146.37,146.36,17.0808]
[1728852409463,8.73860401,146.37,146.36,23.9132]
[1728852418969,8.73860401,146.37,146.36,35.34956685]
[1728852420265,8.73860401,146.37,146.36,55.34956685]
[1728852420568,3.36094165,146.37,146.36,55.34956685]
[1728852423342,8.53681523,146.43,146.36,55.34956685]
[1728852423549,8.73753434,146.42,146.39,6.831]
[1728852423750,8.73753434,146.41,146.39,6.831]
[1728852423978,8.73753434,146.4,146.39,6.831]
[1728852428274,8.73753434,146.4,146.37,26.8319]
[1728852428486,10.44530441,146.39,146.36,17.0808]
[1728852428659,10.44530441,146.39,146.33,16.232]
[1728852428660,8.73753434,146.38,146.33,17.0842]
[1728852428981,6.2442,146.41,146.33,23.918]
[1728852428982,17.2777298,146.37,146.33,23.918]
[1728852429186,8.73753434,146.36,146.33,23.918]
[1728852429363,8.73753434,146.35,146.33,23.918]
[1728852429756,8.73753434,146.34,146.33,23.918]
[1728852431273,1.70823019,146.37,146.33,23.918]
[1728852431483,3.35816964,146.34,146.33,23.918]
[1728852431689,8.73124106,146.34,146.33,23.918]
[1728852434584,8.73124106,146.34,146.3,24.21822632]
[1728852434896,8.73124106,146.33,146.3,23.9225]
[1728852435079,3.35816964,146.32,146.31,6.8347]
[1728852435585,3.35816964,146.32,146.3,23.9227]
[1728852435786,8.54144422,146.35,146.3,23.9227]
[1728852435991,8.72122775,146.34,146.3,43.9227]
[1728852436189,8.72122775,146.33,146.31,6.8347]
[1728852436367,3.35431818,146.32,146.31,6.8347]
[1728852437189,8.71985916,146.32,146.3,37.0876]
[1728852437406,3.35431818,146.31,146.3,17.0876]
[1728852442481,3.35431818,146.31,146.3,23.9228]
[1728852442895,3.35431818,146.31,146.3,35.35916685]
[1728852443214,1.70865703,146.35,146.31,6.8343]
[1728852443394,8.70399187,146.34,146.31,6.8343]
[1728852443595,8.70399187,146.33,146.31,6.8343]
[1728852443810,3.34768918,146.32,146.31,6.8343]
[1728852444120,8.70401017,146.34,146.31,6.8343]
[1728852444305,3.34768918,146.33,146.31,6.8343]
[1728852444493,3.34768918,146.32,146.31,6.8343]
[1728852445926,3.34768918,146.32,146.3,23.9227]
[1728852446126,8.54132931,146.35,146.3,23.9227]
[1728852446297,8.70195638,146.34,146.3,23.9227]
[1728852446506,8.70195638,146.33,146.3,23.9227]
[1728852446816,3.3469063,146.32,146.3,23.9227]
[1728852447015,8.54132931,146.35,146.3,23.9227]
[1728852447219,8.70095022,146.34,146.3,23.9227]
[1728852447431,3.34651931,146.33,146.3,23.9227]
[1728852447609,3.34651931,146.32,146.3,23.9227]
[1728852447804,8.54132931,146.35,146.3,23.9227]
[1728852448003,8.70018831,146.34,146.3,23.9227]
[1728852448221,8.70018831,146.33,146.3,23.9227]
[1728852448517,3.34622627,146.32,146.3,23.9227]
[1728852448724,6.8334,146.34,146.3,17.0876]
[1728852448912,10.40811899,146.33,146.3,17.0876]
[1728852449117,3.34595533,146.32,146.3,17.0876]
[1728852450133,8.54200328,146.34,146.3,17.0876]
[1728852450305,8.69897015,146.33,146.3,17.0876]
[1728852450509,3.34575775,146.32,146.3,17.0876]
[1728852450818,8.54200328,146.34,146.3,17.0876]
[1728852451003,10.40686271,146.33,146.3,23.9228]
[1728852451199,3.34548332,146.32,146.3,23.9228]
[1728852451493,1.70860608,146.33,146.3,23.9228]
[1728852451698,3.34533625,146.32,146.3,23.9228]
[1728852451927,3.34530245,146.31,146.3,23.9228]
[1728852453516,3.34487335,146.31,146.3,23.9228]
[1728852456227,3.34487335,146.31,146.25,22.40886888]
[1728852456445,3.34458428,146.3,146.27,23.928]
[1728852456611,8.54372388,146.31,146.27,17.0914]
[1728852456932,3.34457306,146.3,146.27,17.0914]
[1728852457127,3.34457306,146.29,146.27,17.0914]
[1728852457327,8.54372388,146.31,146.27,17.0914]
[1728852457526,10.40543169,146.3,146.27,17.0914]
[1728852457713,3.34478456,146.29,146.27,17.0914]
[1728852457907,1.70899183,146.3,146.27,17.0914]
[1728852458108,3.34412482,146.29,146.27,17.0914]
[1728852458408,8.54419183,146.3,146.25,6.8375]
[1728852459926,3.34392359,146.29,146.25,6.8375]
[1728852460215,8.54419183,146.3,146.25,6.8375]
[1728852460519,3.34288084,146.29,146.24,17.0945]
[1728852460712,8.54419183,146.3,146.26,6.8371]
[1728852460911,3.34288146,146.29,146.26,6.8371]
[1728852461226,8.54419183,146.3,146.26,6.8371]
[1728852461409,3.3425222,146.29,146.26,6.8371]
[1728852461740,8.54419183,146.3,146.26,6.8371]
[1728852461918,3.3425222,146.29,146.26,6.8371]
[1728852462119,8.54419183,146.3,146.26,6.8371]
[1728852462330,3.34258182,146.29,146.26,6.8371]
[1728852462647,8.54419183,146.3,146.26,6.8371]
[1728852462809,3.34216885,146.29,146.26,6.8371]
[1728852463010,8.54419183,146.3,146.26,6.8371]
[1728852463329,3.34215404,146.29,146.26,6.8371]
[1728852463632,9.73365828,146.3,146.26,6.8371]
[1728852463930,3.34170975,146.29,146.26,6.8371]
[1728852464230,9.73365828,146.3,146.26,6.8371]
[1728852464436,3.34141194,146.29,146.26,6.8371]
[1728852464623,1.18946645,146.3,146.26,6.8371]
[1728852464811,3.34140387,146.29,146.26,6.8371]
[1728852465132,3.34137327,146.28,146.26,6.8371]
[1728852465436,1.18946645,146.3,146.26,6.8371]
[1728852465625,3.34091898,146.29,146.26,6.8371]
[1728852465823,1.18946645,146.3,146.26,6.8371]
[1728852466025,3.34091898,146.29,146.26,6.8371]
[1728852466225,1.18946645,146.3,146.26,6.8371]
[1728852470552,1.18946645,146.3,146.26,6.8371]
[1728852470935,3.33995336,146.29,146.26,6.8371]
[1728852471130,1.18946645,146.3,146.26,6.8371]
[1728852471329,3.33998184,146.29,146.26,6.8371]
[1728852471550,1.18946645,146.3,146.26,6.8371]
[1728852471845,3.33982305,146.29,146.26,6.8371]
[1728852472043,1.18946645,146.3,146.26,6.8371]
[1728852472248,3.33987773,146.29,146.26,6.8371]
[1728852472423,1.18946645,146.3,146.26,6.8371]
[1728852473145,1.18946645,146.3,146.28,6.836]
[1728852473347,1.70893922,146.32,146.28,6.836]
[1728852473524,3.3399045,146.31,146.28,6.836]
[1728852473849,1.70893922,146.32,146.28,6.836]
[1728852474144,3.3399047,146.31,146.28,6.836]
[1728852474350,1.70893922,146.32,146.28,6.836]
[1728852474534,3.34008196,146.31,146.28,6.836]
[1728852474736,1.70893922,146.32,146.28,6.836]
[1728852474942,3.34008206,146.31,146.28,6.836]
[1728852475242,1.70893922,146.32,146.28,6.836]
[1728852475438,3.34032446,146.31,146.29,6.8357]
[1728852475655,18.62622781,146.33,146.29,6.8357]
[1728852475656,2.89812781,146.33,146.29,6.8357]
[1728852475859,3.34036585,146.32,146.29,6.8357]
[1728852476030,2.89812781,146.33,146.29,6.8357]
[1728852476231,3.34036606,146.32,146.29,6.8357]
[1728852476436,3.34036606,146.31,146.29,6.8357]
[1728852476643,2.89812781,146.33,146.29,6.8357]
[1728852476831,3.34072398,146.32,146.29,6.8357]
[1728852477032,3.34072398,146.31,146.29,6.8357]
[1728852477253,2.89812781,146.33,146.29,6.8357]
[1728852477555,8.68697457,146.32,146.29,6.8357]
[1728852477844,3.34114407,146.31,146.29,6.8357]
[1728852478053,2.89812781,146.33,146.29,6.8357]
[1728852478249,8.68778929,146.32,146.29,6.8357]
[1728852478555,3.34145742,146.31,146.29,6.8357]
[1728852478740,9.73192781,146.33,146.29,6.8357]
[1728852479055,8.68824798,146.32,146.29,6.8357]
[1728852479238,3.34163384,146.31,146.29,6.8357]
[1728852479447,9.73192781,146.33,146.29,6.8357]
[1728852479747,8.68976041,146.32,146.29,6.8357]
[1728852480547,8.68976041,146.32,146.3,6.835]
[1728852480858,1.18932898,146.33,146.3,6.835]
[1728852481066,3.34224553,146.32,146.3,6.835]
[1728852481230,1.18932898,146.33,146.3,6.835]
[1728852481425,3.34224612,146.32,146.31,6.8348]
[1728852481740,9.73034085,146.36,146.32,6.8341]
[1728852482059,9.73034085,146.36,146.31,11.43636685]
[1728852482060,8.6929342,146.35,146.31,6.8347]
[1728852482350,3.34343623,146.34,146.31,6.8347]
[1728852482554,3.34343623,146.33,146.31,6.8347]
[1728852482732,9.73034085,146.36,146.31,6.8347]
[1728852482933,8.69606346,146.35,146.31,6.8347]
[1728852483152,3.34463979,146.34,146.31,6.8347]
[1728852483345,3.34463979,146.33,146.31,6.8347]
[1728852483559,9.73034085,146.36,146.31,6.8347]
[1728852483748,8.699435,146.35,146.31,6.8347]
[1728852484053,8.699435,146.34,146.31,6.8347]
[1728852484255,3.34593582,146.33,146.31,6.8347]
[1728852484557,9.73034085,146.36,146.31,6.8347]
[1728852484753,8.70306232,146.35,146.31,6.8347]
[1728852484930,8.70306232,146.34,146.31,6.8347]
[1728852485130,9.73034085,146.36,146.31,6.8347]
[1728852485131,3.34733166,146.33,146.31,6.8347]
[1728852485332,3.34885564,146.32,146.31,6.8347]
[1728852486657,3.34885564,146.32,146.31,38.27106685]
[1728852486831,1.18931711,146.36,146.31,31.43636685]
[1728852487026,8.71150582,146.35,146.32,6.8341]
[1728852487232,8.71150582,146.34,146.32,6.8341]
[1728852487466,3.35057916,146.33,146.31,20.0]
[1728852487634,3.35057916,146.32,146.31,6.8346]
[1728852488033,3.35230429,146.32,146.31,6.8346]
[1728852488652,8.71933671,146.32,146.31,6.8346]
[1728852488859,8.71933671,146.32,146.3,17.0876]
[1728852489034,8.71933671,146.31,146.3,17.0876]
[1728852489232,8.71933671,146.31,146.3,23.9228]
[1728852491860,8.72421332,146.31,146.3,23.9228]
[1728852492166,8.72421332,146.31,146.3,35.35916685]
[1728852494266,8.72421332,146.31,146.3,23.9228]
[1728852495162,3.35546666,146.31,146.3,55.35916685]
[1728852495747,3.35667711,146.31,146.3,55.35916685]
[1728852503251,2.89753945,146.36,146.32,6.8341]
[1728852503573,8.72552894,146.35,146.32,6.8341]
[1728852503771,8.72552894,146.34,146.32,6.8341]
[1728852504071,8.72552894,146.33,146.32,6.8341]
[1728852507185,2.89753945,146.36,146.32,6.8341]
[1728852507359,5.36915199,146.33,146.32,6.8341]
[1728852507564,8.72487198,146.33,146.32,6.8341]
[1728852508276,3.35571999,146.33,146.32,6.8341]
[1728852511077,1.18931711,146.36,146.33,6.8336]
[1728852511266,3.35436606,146.35,146.33,6.8336]
[1728852511464,3.35436606,146.34,146.33,6.8336]
[1728852511777,3.35419495,146.34,146.33,6.8336]
[1728852514959,1.18931711,146.36,146.33,6.8336]
[1728852515265,3.353674,146.35,146.33,6.8336]
[1728852515472,3.353674,146.34,146.33,6.8336]
[1728852518681,1.18931711,146.36,146.33,6.8336]
[1728852518858,3.35359779,146.35,146.33,6.8336]
[1728852519060,3.35359779,146.34,146.33,6.8336]
[1728852520189,3.35359779,146.34,146.33,38.26996685]
[1728852520366,3.35359779,146.34,146.33,26.8336]
[1728852522561,3.35419174,146.34,146.33,26.8336]
[1728852530292,1.18931711,146.36,146.33,26.8336]
[1728852530496,3.35709094,146.35,146.33,26.8336]
[1728852530674,3.35709094,146.34,146.33,26.8336]
[1728852534195,1.18931711,146.36,146.33,26.8336]
[1728852534395,3.36025203,146.35,146.33,26.8336]
[1728852534594,3.36025203,146.34,146.33,26.8336]
[1728852535097,3.36025203,146.34,146.33,20.0]
[1728852537180,3.36025203,146.34,146.33,26.8338]
[1728852538191,3.36025203,146.34,146.33,6.8338]
[1728852538504,3.36025203,146.34,146.33,26.8338]
[1728852540093,3.36025203,146.34,146.33,6.8338]
[1728852541103,1.18931711,146.36,146.33,6.8338]
[1728852541310,3.36449783,146.35,146.33,6.8338]
[1728852541602,3.36449783,146.34,146.33,6.8338]
[1728852557431,1.18931711,146.36,146.34,6.8332]
[1728852557813,3.36641045,146.35,146.34,6.8332]
[1728852558202,3.36641045,146.35,146.33,6.8337]
[1728852558509,3.36641045,146.34,146.33,6.8337]
[1728852561348,1.18931711,146.36,146.33,6.8337]
[1728852561624,3.36661264,146.35,146.33,6.8337]
[1728852561819,1.18931711,146.36,146.33,31.43636685]
[1728852562128,3.36663576,146.35,146.34,17.0829]
[1728852563617,3.36663576,146.35,146.34,23.9163]
[1728852569331,3.36663576,146.35,146.3,16.5083]
[1728852569629,3.36663576,146.34,146.33,6.8337]
[1728852569826,3.36663576,146.34,146.33,26.8337]
[1728852571816,3.3653419,146.34,146.33,26.8337]
[1728852577534,3.36542385,146.34,146.33,26.8337]
[1728852589353,1.18931711,146.36,146.33,26.8337]
[1728852589550,3.36551399,146.35,146.33,26.8337]
[1728852589724,3.36551399,146.34,146.33,26.8337]
[1728852591945,1.18931711,146.36,146.33,20.0]
[1728852592147,3.36551502,146.35,146.32,37.0852]
[1728852592328,3.36551502,146.34,146.33,26.8338]
[1728852597224,1.18931711,146.36,146.33,26.8338]
[1728852597424,3.3654738,146.35,146.33,26.8338]
[1728852597644,3.3654738,146.34,146.33,26.8338]
[1728852600870,3.3654738,146.34,146.33,6.8338]
[1728852604070,3.36554491,146.34,146.33,6.8338]
[1728852608066,1.18931711,146.36,146.33,6.8338]
[1728852608267,3.3656451,146.35,146.33,6.8338]
[1728852608561,3.3656451,146.34,146.33,6.8338]
[1728852613655,4.3636451,146.34,146.33,6.8338]
[1728852616477,4.3636451,146.34,146.33,6.8338]
[1728852618849,4.3636451,146.34,146.33,62.04705085]
[1728852619056,8.53696024,146.43,146.39,6.8309]
[1728852619375,3.366612,146.42,146.38,6.8314]
[1728852619551,9.72538088,146.43,146.38,6.8314]
[1728852631076,3.22094626,146.42,146.38,6.8314]
[1728852631278,3.22094626,146.41,146.38,6.8314]
[1728852631469,3.22094626,146.4,146.38,6.8314]
[1728852631664,3.22094626,146.39,146.38,6.8314]
[1728852633655,3.21968902,146.39,146.38,6.8314]
[1728852636779,9.72538088,146.43,146.38,6.8314]
[1728852636963,3.21871508,146.42,146.38,6.8314]
[1728852637168,3.21871497,146.41,146.39,6.831]
[1728852637464,3.21871497,146.4,146.39,6.831]
[1728852641191,3.21773531,146.4,146.39,6.831]
[1728852645687,3.2169779,146.4,146.39,6.831]
[1728852646889,3.2169779,146.4,146.37,17.0796]
[1728852647074,3.2169779,146.39,146.37,17.0796]
[1728852647280,3.21695455,146.38,146.37,17.0796]
[1728852652790,3.21763974,146.38,146.37,17.0796]
[1728852656777,3.21843507,146.38,146.37,17.0796]
[1728852660583,3.21916911,146.38,146.37,17.0796]
[1728852663908,3.21916911,146.38,146.37,23.9116]
[1728852664206,10.05076911,146.38,146.34,17.0834]
[1728852664406,3.21916911,146.37,146.34,17.0834]
[1728852664706,3.21916911,146.36,146.34,17.0834]
[1728852664890,8.53964943,146.38,146.34,17.0834]
[1728852664891,3.21916911,146.35,146.34,17.0834]
[1728852666791,3.21916911,146.35,146.33,6.8337]
[1728852667100,3.21916911,146.34,146.33,6.8337]
[1728852671108,3.22058484,146.34,146.33,6.8337]
[1728852672406,3.22058484,146.34,146.33,38.27006685]
[1728852676010,3.22058484,146.34,146.33,26.8337]
[1728852686529,3.22036584,146.34,146.33,43.9178]
[1728852688094,3.22036584,146.34,146.33,55.35416685]
[1728852688294,1.18925937,146.37,146.36,6.8324]
[1728852688500,4.409325,146.37,146.36,6.8324]
[1728852690727,1.18925937,146.37,146.36,6.8324]
[1728852691022,4.40952931,146.37,146.36,6.8324]
[1728852691324,4.40952931,146.37,146.35,6.8328]
[1728852691538,3.22026994,146.36,146.35,6.8328]
[1728852692231,1.18925937,146.37,146.35,6.8328]
[1728852692416,3.22047458,146.36,146.35,6.8328]
[1728852694119,3.22047458,146.36,146.35,38.26916685]
[1728852694435,8.53719813,146.43,146.38,6.8311]
[1728852694622,3.22098994,146.41,146.38,6.8311]
[1728852694826,3.22098994,146.4,146.38,6.8311]
[1728852695033,3.22098994,146.39,146.38,6.8311]
[1728852697332,3.22098994,146.39,146.38,18.26746685]
[1728852697514,3.22098994,146.39,146.38,6.8311]
[1728852697839,3.22131957,146.39,146.38,6.8311]
[1728852699016,3.22131957,146.39,146.38,38.26746685]
[1728852702616,3.22131957,146.39,146.38,26.8311]
[1728852709241,3.22104151,146.39,146.38,26.8311]
[1728852722824,3.22104151,146.39,146.38,38.26746685]
[1728852723032,1.18882008,146.42,146.41,6.8301]
[1728852723253,3.21894219,146.42,146.41,6.8301]
[1728852726861,3.21798688,146.42,146.41,6.8301]
[1728852727364,3.21798688,146.42,146.41,18.26646685]
[1728852727660,15.9068,146.47,146.44,6.8287]
[1728852727834,4.40634966,146.46,146.44,6.8287]
[1728852728036,3.21798529,146.45,146.44,6.8287]
[1728852730461,1.18836437,146.46,146.43,17.073]
[1728852730755,1.18836437,146.46,146.45,6.8282]
[1728852731067,4.40517055,146.46,146.45,6.8282]
[1728852731272,3.21680618,146.46,146.45,18.26456685]
[1728852731433,22.8568297,146.51,146.47,6.8269]
[1728852731641,4.40408591,146.5,146.47,6.8269]
[1728852731860,3.21597175,146.49,146.47,6.8269]
[1728852732056,3.21597175,146.48,146.47,6.8269]
[1728852733280,3.21597175,146.48,146.47,18.26326685]
[1728852733560,1.18811416,146.5,146.48,6.8268]
[1728852733761,3.21382662,146.49,146.48,6.8268]
[1728852734862,3.21382662,146.49,146.47,6.8273]
[1728852735039,9.72056752,146.5,146.46,17.0686]
[1728852735236,3.21249729,146.49,146.46,17.0686]
[1728852735458,3.21249729,146.49,146.46,23.8963]
[1728852739939,10.03889729,146.49,146.45,20.0]
[1728852740143,3.21249729,146.48,146.45,20.0]
[1728852740372,6.8264,146.49,146.45,20.0]
[1728852740555,3.20954002,146.48,146.45,20.0]
[1728852740756,3.20954002,146.48,146.43,17.0727]
[1728852740757,8.53358808,146.48,146.43,17.0727]
[1728852740956,3.20949888,146.47,146.43,17.0727]
[1728852741267,8.53358808,146.48,146.43,23.9018]
[1728852741468,3.20960769,146.47,146.43,23.9018]
[1728852741663,8.53358808,146.48,146.43,23.9018]
[1728852741869,3.20960621,146.47,146.43,23.9018]
[1728852742069,8.53358808,146.48,146.43,23.9018]
[1728852742275,3.2096034,146.47,146.43,23.9018]
[1728852742439,8.53358808,146.48,146.43,23.9018]
[1728852742641,3.20979623,146.47,146.43,23.9018]
[1728852742863,8.53358808,146.48,146.43,23.9018]
[1728852743069,3.20979633,146.47,146.43,23.9018]
[1728852743366,8.53358808,146.48,146.43,23.9018]
[1728852743572,3.21002906,146.47,146.43,23.9018]
[1728852743773,8.53358808,146.48,146.43,23.9018]
[1728852744062,3.21003187,146.47,146.43,23.9018]
[1728852744375,8.53358808,146.48,146.43,23.9018]
[1728852744572,6.8278,146.46,146.4,17.0761]
[1728852744750,3.21030841,146.45,146.41,6.8301]
[1728852745052,3.21030841,146.44,146.4,17.0761]
[1728852745253,1.70725012,146.44,146.4,17.0761]
[1728852746062,8.53548854,146.45,146.4,17.0761]
[1728852746379,3.21095178,146.44,146.4,23.9064]
[1728852746568,8.53548854,146.45,146.4,23.9064]
[1728852746886,3.21136676,146.44,146.4,23.9064]
[1728852747180,8.53548854,146.45,146.4,23.9064]
[1728852747350,3.21154639,146.44,146.4,23.9064]
[1728852747557,3.21154639,146.43,146.4,23.9064]
[1728852747772,8.53548854,146.45,146.4,23.9064]
[1728852747960,3.21200821,146.44,146.4,23.9064]
[1728852748162,8.53548854,146.45,146.4,23.9064]
[1728852748363,3.21258124,146.44,146.4,23.9064]
[1728852748552,3.21258124,146.43,146.4,23.9064]
[1728852748751,8.53548854,146.45,146.4,23.9064]
[1728852748977,3.21258104,146.44,146.4,23.9064]
[1728852749278,3.21258104,146.43,146.4,23.9064]
[1728852749455,3.21258104,146.44,146.4,23.9064]
[1728852749662,3.21317883,146.43,146.4,23.9064]
[1728852749969,16.5482,146.46,146.4,17.0761]
[1728852750160,3.21317903,146.45,146.41,6.8301]
[1728852750364,3.21317903,146.44,146.41,6.8301]
[1728852750675,3.21317903,146.43,146.41,6.8301]
[1728852750859,23.376,146.46,146.41,6.8301]
[1728852751058,6.8287,146.44,146.4,17.0761]
[1728852751251,4.92123362,146.43,146.4,17.0761]
[1728852751471,3.2138206,146.42,146.4,17.0761]
[1728852751981,4.40265495,146.42,146.39,6.8306]
[1728852752158,3.2138206,146.41,146.39,6.8306]
[1728852752870,3.2138206,146.41,146.38,6.8315]
[1728852753374,3.2157426,146.4,146.38,6.8315]
[1728852753574,1.18883435,146.42,146.38,6.8315]
[1728852753774,3.21579662,146.41,146.38,6.8315]
[1728852753968,3.21579662,146.4,146.38,6.8315]
[1728852754278,1.18883435,146.42,146.38,6.8315]
[1728852754579,3.21596939,146.41,146.38,6.8315]
[1728852754876,3.21596939,146.4,146.38,6.8315]
[1728852755069,1.18883435,146.42,146.38,6.8315]
[1728852755381,3.21596939,146.41,146.37,17.0797]
[1728852755562,3.21596939,146.4,146.38,6.8315]
[1728852755870,1.18883435,146.42,146.38,6.8315]
[1728852756070,3.21605605,146.41,146.38,6.8315]
[1728852756262,3.21605605,146.4,146.38,6.8315]
[1728852756578,1.18883435,146.42,146.38,6.8315]
[1728852756749,3.21614731,146.41,146.38,6.8315]
[1728852756958,3.21614731,146.4,146.38,6.8315]
[1728852757155,1.18883435,146.42,146.38,6.8315]
[1728852757367,3.21614413,146.41,146.38,6.8315]
[1728852757652,3.21614413,146.4,146.38,6.8315]
[1728852757867,1.18883435,146.42,146.38,6.8315]
[1728852758053,3.21615028,146.41,146.38,6.8315]
[1728852758365,3.21615028,146.4,146.38,6.8315]